[Event "ESP-ch U2000 2024"]
[Site "Albacete"]
[Date "2024.08.27"]
[Round "2.6"]
[White "Lopez Ruiz, Jarein"]
[Black "Hurtado Oldridge, Felipe"]
[Result "1/2-1/2"]
[ECO "B31"]
[WhiteElo "1970"]
[BlackElo "1873"]
[Annotator "TA"]
[PlyCount "95"]
[EventDate "2024.08.27"]
[EventType "swiss"]
[EventCountry "ESP"]
[SourceTitle "playchess.com"]
[Source "ChessBase"]
[SourceQuality "1"]
[TimeControl "5400+30"]

{[%evp 12,95,35,24,73,80,80,78,95,94,158,152,269,274,272,247,261,197,206,143,142,109,104,106,106,0,0,0,0,0,0,0,0,0,65,68,70,0,0,0,0,0,0,0,0,0,0,0,0,0,0,0,0,0,0,0,0,0,252,0,33,0,0,0,0,0,0,0,0,0,0,0,381,375,333,0,0,0,367,0,0,0,328,350,314,289]} 1. e4 {[%emt 0:00:06]} c5 {[%emt 0:00:29]} 2. Nf3 {[%emt 0:00:12]} Nc6 {[%emt 0:00:06]} 3. Bb5 {[%emt 0:00:10]} g6 {[%emt 0:00:14]} 4. Bxc6 {[%emt 0:00:11]} bxc6 {[%emt 0:00:46]} 5. O-O {[%emt 0:00:18]} Bg7 {[%emt 0:00:18]} 6. Re1 {[%emt 0:00:31]} e5 {[%emt 0:00:22]} 7. c3 {[%emt 0:01:55]} d6 {[%emt 0:02:57]} (7... Ne7 $11) 8. d4 $16 cxd4 {[%emt 0:01:48]} 9. cxd4 {[%emt 0:01:25]} Bg4 {[%emt 0:00:35] White is better.} 10. dxe5 {[%emt 0:09:15]} Bxe5 {[%emt 0:06:06]} (10... dxe5 $142 11. Qe2 Nf6) 11. Nbd2 {[%emt 0:07:08]} Qf6 {[%emt 0:05:53]} (11... Kf8 $16 {was necessary.} 12. Nc4 Qe7) 12. Qc2 $18 {[%emt 0:01:22]} Ne7 {[%emt 0:01:08]} 13. Nxe5 {[%emt 0:00:44]} dxe5 {[%emt 0:00:20]} 14. b3 {[%emt 0:07:22]} g5 {[%emt 0:10:05]} 15. Ba3 {[%emt 0:05:23] Qc5 is the strong threat.} O-O {[%emt 0:00:43]} 16. Bxe7 {[%emt 0:08:11]} Qxe7 {[%emt 0:00:03]} 17. Qxc6 {[%emt 0:00:22]} Rac8 {[%emt 0:00:26]} 18. Qh6 {[%emt 0:00:22]} (18. Qa6 $16) 18... Rfd8 $11 {[%emt 0:03:01]} 19. Nf3 {[%emt 0:05:39]} Bxf3 {[%emt 0:02:06]} 20. gxf3 {[%emt 0:00:02]} Rd6 {[%emt 0:03:09]} 21. Qh3 {[%emt 0:09:28]} Rc2 {[%emt 0:00:17]} 22. Rec1 {[%emt 0:00:41]} Rdd2 {[%emt 0:02:59]} (22... Rb2 $11) 23. Rxc2 $14 {[%emt 0:00:42]} Rxc2 {[%emt 0:00:02][%mdl 4096] Endgame. KQR-KQR} 24. Qf5 {[%emt 0:03:15]} (24. Rd1 $14) 24... h6 $11 {[%emt 0:01:42]} 25. b4 {[%emt 0:10:09]} Qd6 {[%emt 0:10:51] Repels Rd1} 26. a3 {[%emt 0:04:46]} Rxf2 {[%emt 0:02:16] Strongly threatening ...Qd2.} 27. Kxf2 {[%emt 0:00:21]} Qd4+ {[%emt 0:00:02]} 28. Kg2 {[%emt 0:01:17]} Qb2+ {[%emt 0:01:19]} 29. Kg3 {[%emt 0:03:42]} Qxa1 {[%emt 0:00:04] KQ-KQ} 30. Qc8+ {[%emt 0:00:24]} Kg7 {[%emt 0:03:56]} 31. Qc5 {[%emt 0:00:46]} Qb2 {[%emt 0:05:19]} 32. Qxa7 {[%emt 0:03:07]} h5 {[%emt 0:00:20] ( -> ...h4+)} 33. Qc5 {[%emt 0:02:41]} Qa1 {[%emt 0:22:08]} 34. b5 {[%emt 0:03:40]} h4+ $2 {[%emt 0:00:34][%mdl 8192]} (34... Qe1+ $11 35. Kg2 Qe2+ 36. Kg1 Qe1+ 37. Kg2 Qe2+ 38. Kg1 Qe1+ 39. Kg2) 35. Kg2 $2 {[%emt 0:00:49]} (35. Kg4 $18) 35... Qb2+ {[%emt 0:01:06]} 36. Qf2 {[%emt 0:00:41]} Qxa3 {[%emt 0:01:49]} 37. Qd2 {[%emt 0:01:29]} Kg6 {[%emt 0:00:04]} 38. b6 {[%emt 0:02:28]} f6 {[%emt 0:03:41]} 39. b7 {[%emt 0:01:18]} Qb3 {[%emt 0:06:31]} 40. Qd5 {[%emt 0:00:05]} Qc2+ {[%emt 0:03:44]} 41. Kh3 {[%emt 0:01:33]} Qf2 $2 {[%emt 0:00:18][%mdl 8192]} (41... Qe2 $11 {and Black stays safe.} 42. Qg8+ (42. b8=B $2 Qxf3#) 42... Kh6 43. Qf8+ (43. b8=B $2 Qxf3#) 43... Kg6 44. Qg8+ (44. b8=B $2 Qxf3#) 44... Kh6 45. Qf8+ (45. b8=B $2 Qxf3#) 45... Kg6 46. Qg8+ (46. b8=B $2 Qxf3#)) 42. Qg8+ {[%emt 0:01:12]} (42. b8=B $2 Qxf3#) 42... Kh6 {[%emt 0:00:01][%cal Rf2f3] [#]} 43. Qf8+ $2 {[%emt 0:02:35]} (43. b8=B $2 Qxf3#) (43. Qb3 $1 $18 Kg6 44. Qd3 (44. b8=R $2 Qf1+ 45. Kg4 Qg2#) (44. Qg8+ Kh6 $18) 44... g4+ 45. fxg4) 43... Kg6 {[%emt 0:00:04][%cal Rf2f3]} 44. Qe8+ {[%emt 0:00:13]} (44. b8=B $2 Qxf3#) 44... Kh6 $2 {[%emt 0:00:11][%mdl 8192]} (44... Kg7 $1 $11 45. Qe7+ (45. b8=B $2 Qxf3#) 45... Kg6 46. Qe8+ (46. b8=B $2 Qxf3#) 46... Kg7 47. Qe7+ (47. b8=B $2 Qxf3#) 47... Kg6 48. Qe8+ (48. b8=B $2 Qxf3#)) 45. Qf8+ $2 {[%emt 0:03:57]} (45. b8=B $2 Qxf3#) (45. Kg4 $18 {Intending Qh5+ and mate.} Qg2+ 46. Kf5 Qxf3+ 47. Ke6 Qb3+ 48. Kxf6 Qb6+ 49. Qe6 (49. Kxe5 Qb2+ 50. Kd6 Qxb7 $11) (49. Kf5 Qf2+ 50. Ke6 Qb6+ 51. Kf5 Qf2+ 52. Kxe5 Qb2+ 53. Kd6 Qxb7 $11) 49... Qxb7 50. Kf5+ (50. Kxe5+ Kh5 $11) (50. Qxe5 Qg7+ 51. Ke6 g4 $17) 50... Kh7 51. Qg6+ (51. Kxg5 Qxe4 52. Qf7+ Kh8 $11) (51. Kxe5 Qg7+ 52. Kf5 g4 $11) (51. Qxe5 h3 $16) 51... Kh8 52. Qh6+ (52. Qxg5 Qd7+ 53. Kxe5 Qc7+ 54. Ke6 Qxh2 $11) (52. Kxg5 Qb2 $16) (52. Kxe5 Qb8+ 53. Kf6 Qd8+ 54. Kf5 Qd7+ 55. Kxg5 Qd2+ 56. Kg4 Qg2+ 57. Kh5 Qxh2 $11) 52... Kg8 53. Qxg5+ Kf8 54. Qf6+ (54. Qxh4 Qd7+ 55. Kxe5 Qb5+ 56. Kf4 Qf1+ 57. Ke3 Qc1+ 58. Kf3 Qh1+ 59. Kf2 Qc1 $18) (54. Kxe5 Qb2+ 55. Kf5 Qxh2 $11) 54... Kg8 55. Qxe5) 45... Kg6 {[%emt 0:00:01][%cal Rf2f3]} 46. Qg8+ $2 {[%emt 0:00:31][%mdl 8192]} (46. b8=B $2 Qxf3#) (46. Qe8+ $11 Kg7 47. Qd7+ (47. b8=B $2 Qxf3#) 47... Kh6 48. Qd1 (48. b8=B $2 Qxf3#)) 46... Kh6 $18 {[%emt 0:01:38][%cal Rf2f3] [#]} 47. Qb3 {[%emt 0:00:00]} (47. b8=B $2 Qxf3#) 47... Kg6 {[%emt 0:01:47]} 48. Qd3 {[%mdl 32768] Inhibits Qf1+.   Weighted Error Value: White=0.35/Black=0.51.  Loses game:     	---       	Black=3      Missed win:     	White=3     	---        Mistake:       	White=3     	Black=3      Inaccurate:     	White=2     	Black=1      OK:         	White=12    	Black=15     Best:        	White=1     	Black=7     . An unexpected result.} (48. b8=R $2 {gets mated.} Qf1+ 49. Kg4 Qg2#) ({Weaker is} 48. Qg8+ Kh6 $16) 1/2-1/2

[Event "ESP-ch U2000 2024"]
[Site "Albacete"]
[Date "2024.08.27"]
[Round "2.7"]
[White "Ruiz de Leon Merlo, Esther"]
[Black "Tarraga Navarro, Pablo"]
[Result "0-1"]
[ECO "C02"]
[WhiteElo "1877"]
[BlackElo "1968"]
[Annotator "TA"]
[PlyCount "72"]
[EventDate "2024.08.27"]
[EventType "swiss"]
[EventCountry "ESP"]
[SourceTitle "playchess.com"]
[Source "ChessBase"]
[SourceQuality "1"]
[TimeControl "5400+30"]

{[%evp 11,71,-2,-8,-34,-24,-32,-25,-38,0,0,0,20,37,10,18,0,0,0,18,0,0,-5,0,0,-1,0,0,-8,0,-15,-15,-17,-16,-30,-26,-46,-34,-40,-40,-91,-52,-74,-25,-16,-10,-32,-30,-390,-266,-839,-864,-1014,-375,-6179,-5541,-29978,-29977,-29997,-29998,-29998,-29999,-29999]} 1. e4 {[%emt 0:00:03]} e6 {[%emt 0:00:08]} 2. d4 {[%emt 0:00:08]} d5 {[%emt 0:00:11]} 3. e5 {[%emt 0:00:12]} c5 {[%emt 0:00:05]} 4. c3 {[%emt 0:00:04]} Qb6 {[%emt 0:00:06]} 5. Nf3 {[%emt 0:00:18]} Nc6 {[%emt 0:00:09]} 6. Bd3 {[%emt 0:01:03]} cxd4 {[%emt 0:00:54]} 7. O-O {[%emt 0:01:02]} Bd7 {[%emt 0:01:36]} 8. Re1 {[%emt 0:01:31]} Nge7 {[%emt 0:08:21]} 9. h4 {[%emt 0:02:30] Black has an edge.} h5 {[%emt 0:07:43]} (9... h6 $15) 10. Nbd2 $11 {[%emt 0:04:26]} dxc3 {[%emt 0:06:52]} 11. bxc3 {[%emt 0:01:24]} Nf5 {[%emt 0:12:09]} 12. Bxf5 {[%emt 0:08:05]} exf5 {[%emt 0:00:12]} 13. Nb3 {[%emt 0:01:37][%cal Oc1e3]} Be6 {[%emt 0:02:00]} 14. Nbd4 {[%emt 0:06:48]} a6 {[%emt 0:10:55]} 15. Qc2 {[%emt 0:07:05]} Nxd4 {[%emt 0:10:18]} 16. Nxd4 {[%emt 0:04:27]} Rc8 {[%emt 0:02:34][%cal Ob6d4] [#] ...Qxd4! is the strong threat.} 17. Nxf5 {[%emt 0:07:50]} Bxf5 {[%emt 0:04:14]} 18. Qxf5 {[%emt 0:00:22]} Qe6 {[%emt 0:00:03]} 19. Qd3 {[%emt 0:04:21]} Be7 {[%emt 0:00:28]} 20. g3 {[%emt 0:04:13]} O-O {[%emt 0:02:30]} 21. Be3 {[%emt 0:06:20][%cal Bc1e3,Be3d4,Bd4c3][%mdl 32]} Rc4 {[%emt 0:07:17]} 22. Bd4 {[%emt 0:04:08]} b5 {[%emt 0:02:18]} 23. Qd1 {[%emt 0:07:18]} g6 {[%emt 0:02:34]} 24. a4 {[%emt 0:02:57]} b4 {[%emt 0:03:55]} 25. Re3 {[%emt 0:01:44]} (25. cxb4 $15 Bxb4 26. Re3) 25... bxc3 {[%emt 0:00:57] Black is more active.} 26. Rxc3 {[%emt 0:00:28]} Rxc3 {[%emt 0:02:43]} (26... Rfc8 $17 27. Rd3 Bc5) 27. Bxc3 {[%emt 0:00:09]} Rc8 {[%emt 0:00:36]} 28. Bd4 {[%emt 0:06:31]} Rc4 {[%emt 0:00:25]} 29. f4 $2 {[%emt 0:03:52][%mdl 8192] This move loses the game for White.} (29. Rb1 $11 {and White has nothing to worry.}) 29... Qc6 {[%emt 0:04:10][%cal Oc4d4] [#] Strongly threatening ...Rxd4!} 30. Kf1 $2 {[%emt 0:07:42]} (30. Bf2) 30... Bc5 $19 {[%emt 0:03:20]} 31. Bxc5 {[%emt 0:02:44]} Rxc5 $2 {[%emt 0:00:02] KQR-KQR} (31... Qxc5 32. Rb1 Rc2) 32. Qd4 $2 {[%emt 0:00:59]} (32. e6 Qxe6 33. Rc1 Rxc1 (33... Qh3+ 34. Kf2 $17) 34. Qxc1) 32... Rc4 {[%emt 0:00:12]} 33. Qa7 {[%emt 0:00:32]} d4 {[%emt 0:01:38] Black mates.} ({Weaker is} 33... Rxa4 34. Rxa4 Qxa4 35. e6 fxe6 36. Qe7 $17) 34. Ra3 {[%emt 0:01:29]} Rc1+ {[%emt 0:01:00]} 35. Kf2 {[%emt 0:00:39]} Qc2+ {[%emt 0:00:12]} 36. Kf3 {[%emt 0:00:05]} Rf1# {Weighted Error Value: White=0.87/Black=0.27 (precise) .  Loses game:     	White=1     	---        Mistake:       	White=2     	Black=2      Inaccurate:     	White=2     	Black=2      OK:         	White=6     	Black=9      Best:        	---       	Black=3} 0-1

[Event "ESP-ch U2000 2024"]
[Site "Albacete"]
[Date "2024.08.27"]
[Round "2.8"]
[White "Sala Esquiva, Miguel"]
[Black "Demerson Joly, Javier"]
[Result "1-0"]
[ECO "D00"]
[WhiteElo "1967"]
[BlackElo "1870"]
[Annotator "TA"]
[PlyCount "59"]
[EventDate "2024.08.27"]
[EventType "swiss"]
[EventCountry "ESP"]
[SourceTitle "playchess.com"]
[Source "ChessBase"]
[SourceQuality "1"]
[TimeControl "5400+30"]

{[%evp 9,59,3,6,10,28,27,35,39,74,71,96,96,139,110,124,98,145,38,99,99,109,101,103,91,108,103,189,-18,33,53,50,0,29,34,77,38,35,33,75,75,133,50,92,55,146,147,154,134,620,667,662,660]} 1. d4 {[%emt 0:00:08]} d5 {[%emt 0:00:13]} 2. Bf4 {[%emt 0:00:07]} c5 {[%emt 0:00:17]} 3. e3 {[%emt 0:00:41]} Nc6 4. Nf3 {[%emt 0:05:09]} cxd4 {[%emt 0:01:54]} 5. exd4 {[%emt 0:02:27]} Bg4 {[%emt 0:03:07]} 6. c3 {[%emt 0:23:48]} Qb6 {[%emt 0:03:07]} 7. Nbd2 {[%emt 0:04:06]} e6 {[%emt 0:02:26]} 8. Qb3 {[%emt 0:02:43] White is slightly better.} Qxb3 {[%emt 0:00:42]} 9. axb3 {[%emt 0:00:24]} Bxf3 {[%emt 0:01:24]} 10. Nxf3 {[%emt 0:00:34]} Nf6 {[%emt 0:00:33]} 11. b4 {[%emt 0:05:59]} Be7 {[%emt 0:03:08]} 12. b5 {[%emt 0:06:53]} Nd8 {[%emt 0:00:15]} (12... Nb8 $142) 13. b6 {[%emt 0:07:06]} (13. Bd3 $16) 13... a6 {[%emt 0:00:16] Black is weak on the dark squares} ({Black should play} 13... Nc6 $14) 14. Bb5+ $16 {[%emt 0:00:20]} Kf8 {[%emt 0:00:05]} 15. Ke2 {[%emt 0:06:23]} Ne4 {[%emt 0:00:21]} 16. Ne5 {[%emt 0:02:15]} f6 {[%emt 0:01:23]} 17. Nd3 {[%emt 0:06:23]} g5 {[%emt 0:01:51]} (17... Nd6 $16 18. Bd7 g5) 18. f3 $2 {[%emt 0:01:13]} (18. Bc7 $18) 18... Nd6 {[%emt 0:00:29]} (18... Nxc3+ $1 $11 19. bxc3 gxf4) 19. Bxd6 $14 {[%emt 0:00:31]} Bxd6 {[%emt 0:00:08]} 20. Ra5 {[%emt 0:15:21]} ({Better is} 20. h4 $14) 20... Rc8 {[%emt 0:00:35]} 21. Bd7 $36 {[%emt 0:00:37][%cal Bb5d7,Bd7a4,Ba4b3][%mdl 2080] White has some pressure.} Rb8 {[%emt 0:04:21]} 22. Nc5 {[%emt 0:03:33] White has more active pieces.} Ke7 {[%emt 0:03:10] [#] White must now prevent ...Bxc5.} 23. Ba4 {[%emt 0:00:13]} Bxc5 {[%emt 0:01:07]} 24. Rxc5 {[%emt 0:01:11]} Kd6 {[%emt 0:03:11]} (24... Nc6 $142) 25. Ra1 {[%emt 0:00:44]} (25. h4 $16 {And now Rc7 would win.} h5 26. Rc7) 25... e5 {[%emt 0:00:37]} 26. Bb3 {[%emt 0:01:22]} exd4 {[%emt 0:01:19]} ({Black should try} 26... Ne6 $1 $14 27. Rxd5+ Kc6) 27. cxd4 $16 {[%emt 0:01:38][%cal Oe2f2]} (27. Rxd5+ Kc6 28. cxd4 (28. Rxd4 Kxb6 29. Rd6+ Nc6 $18) 28... Rf8) 27... Ne6 {[%emt 0:00:50]} 28. Rxd5+ {[%emt 0:00:09]} Kc6 $2 {[%emt 0:00:20][%mdl 8192]} (28... Ke7 $16) 29. Rc1+ $18 {[%emt 0:00:10]} Kxb6 {[%emt 0:00:07] [#] Threatens to win with ...Nf4+.} 30. Rd6+ {[%emt 0:00:04] Weighted Error Value: White=0.43/Black=0.54.  Loses game:     	---       	Black=1      Missed win:     	White=1     	---        Mistake:       	White=3     	Black=6      Inaccurate:     	White=2     	Black=6      OK:         	White=5     	Black=4      Best:        	White=4     	Black=2} 1-0

[Event "ESP-ch U2000 2024"]
[Site "Albacete"]
[Date "2024.08.27"]
[Round "2.9"]
[White "Mateos Atienza, Alberto"]
[Black "Sanjuan Garcia, Miguel"]
[Result "0-1"]
[ECO "B21"]
[WhiteElo "1867"]
[BlackElo "1963"]
[Annotator "TA"]
[PlyCount "50"]
[EventDate "2024.08.27"]
[EventType "swiss"]
[EventCountry "ESP"]
[SourceTitle "playchess.com"]
[Source "ChessBase"]
[SourceQuality "1"]
[TimeControl "5400+30"]

{[%evp 21,50,0,0,-14,0,0,0,-28,0,0,0,-43,-39,-65,-57,-101,-93,-138,-145,-188,-156,-190,-148,-283,-285,-271,-260,-910,-895,-29989,-29990]} 1. e4 {[%emt 0:00:06]} c5 {[%emt 0:00:01]} 2. d4 {[%emt 0:00:31]} cxd4 {[%emt 0:00:04]} 3. c3 {[%emt 0:00:13]} Nf6 {[%emt 0:00:09]} 4. e5 {[%emt 0:00:26]} Nd5 {[%emt 0:00:08]} 5. cxd4 {[%emt 0:02:12]} e6 {[%emt 0:00:14]} 6. Nf3 {[%emt 0:04:18]} b6 {[%emt 0:00:09]} 7. Nc3 {[%emt 0:02:19]} Nxc3 {[%emt 0:00:03]} 8. bxc3 {[%emt 0:00:07]} Qc7 {[%emt 0:00:15]} 9. Bd2 {[%emt 0:06:17]} Bb7 {[%emt 0:00:12]} 10. Bd3 {[%emt 0:00:36]} d6 {[%emt 0:00:13]} 11. O-O {[%emt 0:02:08]} Nd7 {[%emt 0:00:11]} 12. Qe2 {[%emt 0:05:42]} dxe5 {[%emt 0:04:02]} 13. Nxe5 {[%emt 0:02:06]} Nxe5 {[%emt 0:02:54]} 14. dxe5 {[%emt 0:00:04] The position is equal.} (14. Bf4 $5) 14... Be7 {[%emt 0:11:47]} 15. Bb5+ Bc6 {[%emt 0:03:08]} 16. a4 {[%emt 0:16:44]} O-O {[%emt 0:03:35]} 17. f4 {[%emt 0:07:29]} g6 {[%emt 0:08:41]} 18. Bxc6 {[%emt 0:06:14]} Qxc6 {[%emt 0:00:02]} 19. Rf3 {[%emt 0:00:41]} Rac8 {[%emt 0:04:05]} 20. Rh3 {[%emt 0:26:13]} Rfd8 {[%emt 0:01:57]} 21. Be1 {[%emt 0:00:20]} Qc4 {[%emt 0:03:37]} 22. Qf3 {[%emt 0:02:23]} (22. Qxc4 $17 Rxc4 23. Rf3) 22... Rd7 $19 {[%emt 0:04:18]} 23. Bf2 {[%emt 0:03:14]} Rcd8 {[%emt 0:00:56]} 24. Bd4 $2 {[#]} (24. Re1) 24... Rxd4 {[%emt 0:00:42]} 25. cxd4 {[%emt 0:05:07]} Qxd4+ {[%emt 0:00:25] White got outplayed after the opening.   Weighted Error Value: White=1.10/Black=0.08 (flawless) .  Mistake:       	White=2     	---        Inaccurate:     	White=6     	Black=1      OK:         	White=1     	Black=5      Best:        	---       	Black=1} 0-1

[Event "ESP-ch U2000 2024"]
[Site "Albacete"]
[Date "2024.08.28"]
[Round "3.1"]
[White "Tarraga Navarro, Pablo"]
[Black "Hernandez Gonzalez, Manuel"]
[Result "1-0"]
[ECO "B90"]
[WhiteElo "1968"]
[BlackElo "1910"]
[Annotator "TA"]
[PlyCount "45"]
[EventDate "2024.08.27"]
[EventType "swiss"]
[EventCountry "ESP"]
[SourceTitle "playchess.com"]
[Source "ChessBase"]
[SourceQuality "1"]
[TimeControl "5400+30"]

{[%evp 13,45,21,34,39,43,31,50,40,38,50,46,44,55,59,60,65,95,94,91,103,101,98,179,175,206,199,269,301,639,590,627,600,830,818]} 1. e4 {[%emt 0:00:02]} c5 {[%emt 0:00:03]} 2. Nf3 {[%emt 0:00:12]} d6 {[%emt 0:00:06]} 3. d4 {[%emt 0:00:04]} cxd4 {[%emt 0:00:05]} 4. Nxd4 {[%emt 0:00:03]} Nf6 {[%emt 0:00:05]} 5. Nc3 {[%emt 0:00:10]} a6 {[%emt 0:00:40]} 6. Nb3 {[%emt 0:00:36]} e5 {[%emt 0:03:03]} 7. Bg5 {[%emt 0:01:00]} Be7 {[%emt 0:03:36]} 8. Bxf6 {[%emt 0:00:38]} Bxf6 {[%emt 0:00:27]} 9. Qd3 {[%emt 0:00:04]} Be6 {[%emt 0:09:36]} 10. O-O-O {[%emt 0:00:12] White is slightly better.} Be7 {[%emt 0:00:16]} 11. g3 {[%emt 0:00:20][%cal Bg2g3,Bg3g4,Bg4g5][%mdl 32]} Nd7 {[%emt 0:01:49]} 12. f4 {[%emt 0:03:13][%cal Bf2f4,Bf4f5][%mdl 32]} Rc8 {[%emt 0:03:16]} 13. f5 {[%emt 0:00:38]} Bc4 {[%emt 0:00:05]} 14. Qf3 {[%emt 0:00:20]} Nf6 {[%emt 0:02:35]} 15. Bxc4 {[%emt 0:03:35]} Rxc4 {[%emt 0:00:03]} 16. g4 {[%emt 0:07:54]} h6 {[%emt 0:02:40]} 17. h4 {[%emt 0:10:34]} b5 {[%emt 0:02:56]} (17... Rxc3 $16 18. bxc3 (18. Qxc3 Nxg4 19. Rhg1 h5 $16) 18... Nd7) 18. g5 $18 {[%emt 0:02:39]} Nd7 {[%emt 0:00:24]} 19. Kb1 {[%emt 0:14:03]} ({Don't do} 19. f6 gxf6 20. Kb1 Qc8 $16) 19... b4 {[%emt 0:24:46]} (19... hxg5 $142 20. hxg5 Rg8) 20. Nd5 {[%emt 0:01:33]} Nb6 $2 {[%emt 0:01:53] [#]} (20... Rc8 21. Nxb4 Bf8) 21. Na5 {[%emt 0:03:22][%cal Bb3a5,Ba5c4,Bc4e5][%mdl 32] White is clearly winning.} Nxd5 {[%emt 0:06:11]} 22. Nxc4 {[%emt 0:00:11]} Nf4 {[%emt 0:00:04]} 23. Nxe5 {[%emt 0:01:43] Weighted Error Value: White=0.00 (flawless) /Black=0.51.  Mistake:       	---       	Black=3      Inaccurate:     	---       	Black=2      OK:         	White=12    	Black=4      Best:        	White=1     	---} 1-0

[Event "ESP-ch U2000 2024"]
[Site "Albacete"]
[Date "2024.08.28"]
[Round "3.2"]
[White "Santos Dominguez, Iker"]
[Black "Sala Esquiva, Miguel"]
[Result "0-1"]
[ECO "C00"]
[WhiteElo "1900"]
[BlackElo "1967"]
[Annotator "RC"]
[PlyCount "142"]
[EventDate "2024.08.27"]
[EventType "swiss"]
[EventCountry "ESP"]
[SourceTitle "playchess.com"]
[Source "ChessBase"]
[SourceQuality "1"]
[TimeControl "5400+30"]

1. e4 {[%emt 0:00:05]} e6 {[%emt 0:00:08]} 2. Qe2 {[%emt 0:01:12]} c5 {[%emt 0:07:25]} 3. Nf3 {[%emt 0:01:45]} Nc6 {[%emt 0:01:04]} 4. g3 {[%emt 0:02:32]} g6 {[%emt 0:09:01]} 5. Bg2 {[%emt 0:01:45]} Bg7 {[%emt 0:00:26]} 6. O-O {[%emt 0:00:56]} d6 {[%emt 0:07:03]} 7. c3 {[%emt 0:02:08]} Nge7 {[%emt 0:03:22]} 8. d3 {[%emt 0:02:17]} O-O {[%emt 0:01:36]} 9. Be3 {[%emt 0:02:02]} e5 {[%emt 0:05:15]} 10. Rd1 {[%emt 0:04:50]} f5 {[%emt 0:03:22]} 11. Bg5 {[%emt 0:08:41]} h6 {[%emt 0:05:50]} 12. Bxe7 {[%emt 0:00:22]} Qxe7 {[%emt 0:00:44]} 13. Na3 {[%emt 0:01:44]} f4 {[%emt 0:06:21]} 14. Nc2 {[%emt 0:06:37]} g5 {[%emt 0:02:07]} 15. h3 {[%emt 0:02:08]} g4 {[%emt 0:08:36]} 16. hxg4 {[%emt 0:01:29]} Bxg4 {[%emt 0:00:14]} 17. gxf4 {[%emt 0:11:37]} Rxf4 {[%emt 0:02:35]} 18. Ne3 {[%emt 0:01:57]} Raf8 {[%emt 0:11:15]} 19. Nd5 {[%emt 0:07:09]} Qf7 {[%emt 0:00:27]} 20. Nxf4 {[%emt 0:00:19]} Qxf4 {[%emt 0:00:14]} 21. Qe3 {[%emt 0:00:32]} Bxf3 {[%emt 0:03:52]} 22. Qxf4 {[%emt 0:01:03]} Rxf4 {[%emt 0:00:11]} 23. Bxf3 {[%emt 0:00:06]} Rxf3 {[%emt 0:00:11]} 24. Kg2 {[%emt 0:01:10]} Rf4 {[%emt 0:01:12]} 25. f3 {[%emt 0:02:25]} Bf6 {[%emt 0:04:59]} 26. Kf2 {[%emt 0:00:47]} Nd8 {[%emt 0:02:11]} 27. a3 {[%emt 0:03:00]} Ne6 {[%emt 0:01:13]} 28. Ke2 {[%emt 0:04:24]} Ng5 {[%emt 0:01:41]} 29. Rg1 {[%emt 0:01:10]} Kf7 {[%emt 0:00:26]} 30. Rg4 {[%emt 0:02:14]} Rxg4 {[%emt 0:03:28]} 31. fxg4 {[%emt 0:00:01]} Ne6 {[%emt 0:01:41]} 32. Kf3 {[%emt 0:04:17]} Kg6 {[%emt 0:00:40]} 33. Rh1 {[%emt 0:01:17]} Nf4 {[%emt 0:00:13]} 34. d4 {[%emt 0:00:52]} cxd4 {[%emt 0:04:23]} 35. cxd4 {[%emt 0:00:15]} Nd3 {[%emt 0:01:31]} 36. d5 {[%emt 0:01:27]} Nxb2 {[%emt 0:02:02]} 37. Rb1 {[%emt 0:00:52]} Nc4 {[%emt 0:00:04]} 38. Rxb7 {[%emt 0:00:29]} Nxa3 {[%emt 0:00:42]} 39. Rxa7 {[%emt 0:00:15]} Nb5 {[%emt 0:00:53]} 40. Rb7 {[%emt 0:00:48]} Nd4+ {[%emt 0:00:29]} 41. Kg3 {[%emt 0:00:26]} Bg5 {[%emt 0:00:22]} 42. Rd7 {[%emt 0:01:01]} Nb5 {[%emt 0:00:03]} 43. Rb7 {[%emt 0:01:03]} Bf4+ {[%emt 0:00:32]} 44. Kh3 {[%emt 0:00:36]} Nc3 {[%emt 0:00:24]} 45. Rb4 {[%emt 0:00:54]} Be3 {[%emt 0:00:45]} 46. Kg3 {[%emt 0:00:57]} Bc5 {[%emt 0:00:44]} 47. Rc4 {[%emt 0:00:24]} Ne2+ {[%emt 0:00:13]} 48. Kf3 {[%emt 0:01:10]} Nd4+ {[%emt 0:00:07]} 49. Kg3 {[%emt 0:00:19]} Kg5 {[%emt 0:00:26]} 50. Ra4 {[%emt 0:00:17]} Nb3 {[%emt 0:01:02]} 51. Ra2 {[%emt 0:01:26]} Bb4 {[%emt 0:01:30]} 52. Kh3 {[%emt 0:11:50]} Nc5 {[%emt 0:00:38]} 53. Re2 {[%emt 0:04:38]} Kf4 {[%emt 0:00:00]} 54. Rf2+ {[%emt 0:01:04]} Kxe4 {[%emt 0:00:13]} 55. Rb2 {[%emt 0:00:34]} Bc3 {[%emt 0:00:21]} 56. Re2+ {[%emt 0:01:43]} Kxd5 {[%emt 0:00:06]} 57. Kh4 {[%emt 0:00:24]} Ne4 {[%emt 0:00:28]} 58. Rc2 {[%emt 0:00:44]} Bd2 {[%emt 0:00:11]} 59. Kh3 {[%emt 0:00:36]} Kd4 {[%emt 0:00:26]} 60. Kg2 {[%emt 0:00:17]} d5 {[%emt 0:00:35]} 61. Kf3 {[%emt 0:00:23]} Bf4 {[%emt 0:00:21]} 62. Ra2 {[%emt 0:00:17]} Nd2+ {[%emt 0:00:22]} 63. Ke2 {[%emt 0:00:39]} e4 {[%emt 0:00:15]} 64. Ra6 {[%emt 0:00:21]} Nc4 {[%emt 0:00:26]} 65. Rf6 {[%emt 0:00:21]} Bg5 {[%emt 0:00:14]} 66. Rf5 {[%emt 0:00:07]} Ne3 {[%emt 0:00:25]} 67. Rf8 {[%emt 0:00:18]} Nxg4 {[%emt 0:00:20]} 68. Ra8 {[%emt 0:00:16]} Ne5 {[%emt 0:01:01]} 69. Rh8 {[%emt 0:00:13]} Nd3 {[%emt 0:00:22]} 70. Rh7 {[%emt 0:00:15]} Nc1+ {[%emt 0:00:42]} 71. Kd1 {[%emt 0:00:31]} e3 {[%emt 0:00:59]} 0-1